[Event "SixDays One Year IM-B 2023"]
[Site "Budapest"]
[Date "2023.09.22"]
[Round "8.4"]
[White "Pap, Gyula"]
[Black "Valkova, Angelika"]
[Result "1/2-1/2"]
[ECO "C07"]
[WhiteElo "2429"]
[BlackElo "2057"]
[Annotator "ChessBase"]
[PlyCount "39"]
[EventDate "2023.09.18"]
[EventType "tourn"]
[EventCountry "HUN"]
[SourceTitle "playchess.com"]
[Source "ChessBase"]
[SourceQuality "1"]
[TimeControl "5400+30"]

1. e4 {[%emt 0:00:01]} e6 {[%emt 0:00:02]} 2. d4 {[%emt 0:00:04]} d5 {[%emt 0:00:03]} 3. Nd2 {[%emt 0:00:05]} c5 {[%emt 0:00:03]} 4. Ngf3 {[%emt 0:00:06]} cxd4 {[%emt 0:00:03]} 5. exd5 {[%emt 0:00:05]} Qxd5 {[%emt 0:00:06]} 6. Bc4 {[%emt 0:00:04]} Qd6 {[%emt 0:00:03]} 7. O-O {[%emt 0:00:05]} Nf6 {[%emt 0:00:02]} 8. Nb3 {[%emt 0:00:04]} Nc6 {[%emt 0:00:04]} 9. Nbxd4 {[%emt 0:00:04]} Nxd4 {[%emt 0:00:04]} 10. Qxd4 {[%emt 0:00:06]} Qxd4 {[%emt 0:00:03]} 11. Nxd4 {[%emt 0:00:04]} Bc5 {[%emt 0:00:04]} 12. Nb3 {[%emt 0:00:08]} Be7 {[%emt 0:00:07]} 13. Be2 {[%emt 0:00:06]} O-O {[%emt 0:00:24]} 14. Be3 {[%emt 0:00:05]} Bd7 {[%emt 0:00:11]} 15. Rfd1 {[%emt 0:00:13]} Bc6 {[%emt 0:00:14]} 16. Nd4 {[%emt 0:00:12]} Bd7 {[%emt 0:00:09]} 17. Nb3 {[%emt 0:00:06]} Bc6 {[%emt 0:00:04]} 18. Nd4 {[%emt 0:00:03]} Bd7 {[%emt 0:00:02]} 19. Nb3 {[%emt 0:00:05]} Bc6 {[%emt 0:00:03]} 20. Nd4 {[%emt 0:00:04]} 1/2-1/2

[Event "SixDays One Year IM-B 2023"]
[Site "Budapest"]
[Date "2023.09.22"]
[Round "8.5"]
[White "To, Nhat Minh"]
[Black "Pagan, Jonathan"]
[Result "1-0"]
[ECO "B12"]
[WhiteElo "2342"]
[BlackElo "2021"]
[Annotator "ChessBase"]
[PlyCount "41"]
[EventDate "2023.09.18"]
[EventType "tourn"]
[EventCountry "HUN"]
[SourceTitle "playchess.com"]
[Source "ChessBase"]
[SourceQuality "1"]
[TimeControl "5400+30"]

1. e4 {[%emt 0:00:01]} c6 {[%emt 0:08:36]} 2. d4 {[%emt 0:00:05]} d5 {[%emt 0:00:03]} 3. e5 {[%emt 0:00:02]} Bf5 {[%emt 0:00:08]} 4. Nf3 {[%emt 0:00:04]} e6 {[%emt 0:00:05]} 5. Be2 {[%emt 0:00:03]} Ne7 {[%emt 0:00:05]} 6. O-O {[%emt 0:00:20]} c5 {[%emt 0:00:07]} 7. Be3 {[%emt 0:04:00]} Nec6 {[%emt 0:02:20]} 8. dxc5 {[%emt 0:02:14]} Nd7 {[%emt 0:02:43]} 9. c4 {[%emt 0:00:10]} dxc4 {[%emt 0:00:17]} 10. Bxc4 {[%emt 0:01:42]} Bxc5 {[%emt 0:00:16]} 11. Bxc5 {[%emt 0:01:51]} Nxc5 {[%emt 0:00:06]} 12. Bb5 {[%emt 0:00:22]} Qb6 {[%emt 0:08:14]} 13. Na3 {[%emt 0:00:22]} Rd8 {[%emt 0:02:57]} 14. Qe2 {[%emt 0:00:29]} O-O {[%emt 0:05:34]} 15. Rfd1 {[%emt 0:00:13]} Bg4 {[%emt 0:05:05]} 16. Qe3 {[%emt 0:03:41]} Nd7 {[%emt 0:06:38]} 17. Bxc6 {[%emt 0:00:51]} bxc6 {[%emt 0:09:08]} 18. Nc4 {[%emt 0:00:13]} Qb4 {[%emt 0:07:17]} 19. b3 {[%emt 0:05:14]} Nb6 {[%emt 0:01:43]} 20. Rxd8 {[%emt 0:01:33]} Rxd8 {[%emt 0:00:07]} 21. Qg5 {[%emt 0:00:04]} 1-0

[Event "SixDays One Year IM-B 2023"]
[Site "Budapest"]
[Date "2023.09.23"]
[Round "9.1"]
[White "Pagan, Jonathan"]
[Black "Meessen, Rudolf"]
[Result "1/2-1/2"]
[ECO "E91"]
[WhiteElo "2021"]
[BlackElo "2109"]
[Annotator "RC"]
[PlyCount "87"]
[EventDate "2023.09.18"]
[EventType "tourn"]
[EventCountry "HUN"]
[SourceTitle "playchess.com"]
[Source "ChessBase"]
[SourceQuality "1"]
[TimeControl "5400+30"]

1. d4 {[%emt 0:19:44]} Nf6 {[%emt 0:00:16]} 2. c4 {[%emt 0:00:06]} g6 {[%emt 0:00:10]} 3. Nc3 {[%emt 0:00:08]} Bg7 {[%emt 0:00:06]} 4. e4 {[%emt 0:00:13]} d6 {[%emt 0:00:04]} 5. Nf3 {[%emt 0:00:16]} O-O {[%emt 0:00:05]} 6. Be2 {[%emt 0:00:04]} Na6 {[%emt 0:00:10]} 7. O-O {[%emt 0:04:55]} e5 {[%emt 0:00:10]} 8. Re1 {[%emt 0:02:13]} exd4 {[%emt 0:01:19]} 9. Nxd4 {[%emt 0:01:47]} c6 {[%emt 0:00:28]} 10. Be3 {[%emt 0:00:39]} Re8 {[%emt 0:00:15]} 11. f3 {[%emt 0:00:41]} d5 {[%emt 0:01:25]} 12. cxd5 {[%emt 0:14:32]} Nxd5 {[%emt 0:01:38]} 13. Nxd5 {[%emt 0:14:29]} cxd5 {[%emt 0:00:06]} 14. Qd2 {[%emt 0:06:20]} dxe4 {[%emt 0:01:04]} 15. Rad1 {[%emt 0:00:04]} Nc5 {[%emt 0:07:11]} 16. Nb5 {[%emt 0:01:58]} Qxd2 {[%emt 0:03:02]} 17. Rxd2 {[%emt 0:00:04]} Ne6 {[%emt 0:05:21]} 18. fxe4 {[%emt 0:02:43]} b6 {[%emt 0:03:49]} 19. Bc4 {[%emt 0:01:03]} Ba6 {[%emt 0:02:58]} 20. Bxe6 {[%emt 0:03:04]} Bxb5 {[%emt 0:00:13]} 21. Bd5 {[%emt 0:00:06]} Rac8 {[%emt 0:00:35]} 22. Bd4 {[%emt 0:07:36]} Bh6 {[%emt 0:06:50]} 23. Rf2 {[%emt 0:00:15]} Bc4 {[%emt 0:00:03]} 24. Rc2 {[%emt 0:03:36]} Bxd5 {[%emt 0:12:44]} 25. Rxc8 {[%emt 0:00:05]} Rxc8 {[%emt 0:00:04]} 26. exd5 {[%emt 0:00:03]} Rc1 {[%emt 0:04:22]} 27. Rxc1 {[%emt 0:01:44]} Bxc1 {[%emt 0:00:01]} 28. Bf6 {[%emt 0:02:36]} Kf8 {[%emt 0:04:01]} 29. Kf2 {[%emt 0:00:12]} Bf4 {[%emt 0:03:33]} 30. h3 {[%emt 0:00:26]} Ke8 {[%emt 0:00:10]} 31. Kf3 {[%emt 0:01:10]} Bd6 {[%emt 0:00:25]} 32. g4 {[%emt 0:00:08]} Be7 {[%emt 0:04:04]} 33. Bd4 {[%emt 0:04:42]} Bg5 {[%emt 0:06:42]} 34. Ke4 {[%emt 0:00:16]} Kd7 {[%emt 0:00:12]} 35. b3 {[%emt 0:02:03]} h5 {[%emt 0:04:35]} 36. Bc3 {[%emt 0:00:38]} Bh6 {[%emt 0:01:50]} 37. Bb2 {[%emt 0:00:40]} b5 {[%emt 0:00:34]} 38. Bd4 {[%emt 0:00:38]} a6 {[%emt 0:00:06]} 39. Bc5 {[%emt 0:00:28]} hxg4 {[%emt 0:00:31]} 40. hxg4 {[%emt 0:00:05]} Bg5 {[%emt 0:00:06]} 41. Ke5 {[%emt 0:01:27]} Bh4 {[%emt 0:01:12]} 42. Bb4 {[%emt 0:00:34]} Bd8 {[%emt 0:01:51]} 43. Bc5 {[%emt 0:00:19]} Bh4 {[%emt 0:00:44]} 44. Ke4 1/2-1/2

[Event "SixDays One Year IM-B 2023"]
[Site "Budapest"]
[Date "2023.09.23"]
[Round "9.2"]
[White "Valkova, Angelika"]
[Black "To, Nhat Minh"]
[Result "1/2-1/2"]
[ECO "D35"]
[WhiteElo "2057"]
[BlackElo "2342"]
[Annotator "RC"]
[PlyCount "75"]
[EventDate "2023.09.18"]
[EventType "tourn"]
[EventCountry "HUN"]
[SourceTitle "playchess.com"]
[Source "ChessBase"]
[SourceQuality "1"]
[TimeControl "5400+30"]

1. d4 Nf6 2. c4 e6 3. Nc3 d5 4. cxd5 exd5 5. Bg5 Be7 6. e3 c6 7. Bd3 h6 8. Bh4 O-O 9. Nf3 Re8 10. O-O Nbd7 11. Qc2 Nf8 12. Rab1 a5 13. a3 Be6 14. b4 axb4 15. axb4 N6d7 16. Bxe7 Qxe7 17. Bf5 Bxf5 18. Qxf5 Qe6 19. Qxe6 Nxe6 20. Ra1 f6 21. b5 Kf7 22. h3 Ke7 23. bxc6 bxc6 24. Rfb1 Rxa1 25. Rxa1 Rc8 26. Rc1 Ra8 27. e4 Nb6 28. exd5 Nxd5 29. Nxd5+ cxd5 30. g3 Ra7 31. Kg2 Ng5 32. Nxg5 hxg5 33. Kf3 Ra3+ 34. Ke2 Ra2+ 35. Ke3 Ra3+ 36. Ke2 Ra2+ 37. Ke3 Ra3+ 38. Ke2 1/2-1/2

[Event "SixDays One Year IM-B 2023"]
[Site "Budapest"]
[Date "2023.09.23"]
[Round "9.3"]
[White "Szeberenyi, Adam"]
[Black "Pap, Gyula"]
[Result "1/2-1/2"]
[ECO "D38"]
[WhiteElo "2305"]
[BlackElo "2429"]
[Annotator "RC"]
[PlyCount "25"]
[EventDate "2023.09.18"]
[EventType "tourn"]
[EventCountry "HUN"]
[SourceTitle "playchess.com"]
[Source "ChessBase"]
[SourceQuality "1"]
[TimeControl "5400+30"]

1. d4 d5 2. c4 e6 3. Nc3 Nf6 4. Nf3 Bb4 5. cxd5 exd5 6. Qb3 c5 7. dxc5 Nc6 8. Bg5 h6 9. Bxf6 Qxf6 10. a3 Bxc3+ 11. Qxc3 Qxc3+ 12. bxc3 Be6 13. e3 1/2-1/2

[Event "SixDays One Year IM-B 2023"]
[Site "Budapest"]
[Date "2023.09.23"]
[Round "9.4"]
[White "Besou, Hussain"]
[Black "Balint, Vilmos"]
[Result "1-0"]
[ECO "C78"]
[WhiteElo "2364"]
[BlackElo "2217"]
[Annotator "RC"]
[PlyCount "91"]
[EventDate "2023.09.18"]
[EventType "tourn"]
[EventCountry "HUN"]
[SourceTitle "playchess.com"]
[Source "ChessBase"]
[SourceQuality "1"]
[TimeControl "5400+30"]

1. e4 {[%emt 0:00:02]} e5 {[%emt 0:16:12]} 2. Nf3 {[%emt 0:00:06]} Nc6 {[%emt 0:00:07]} 3. Bb5 {[%emt 0:00:05]} a6 {[%emt 0:00:17]} 4. Ba4 {[%emt 0:00:05]} Nf6 {[%emt 0:00:04]} 5. O-O {[%emt 0:00:26]} b5 {[%emt 0:00:06]} 6. Bb3 {[%emt 0:00:05]} Bc5 {[%emt 0:00:03]} 7. c3 {[%emt 0:01:32]} O-O {[%emt 0:01:20]} 8. d4 {[%emt 0:07:26]} Bb6 {[%emt 0:03:44]} 9. a4 {[%emt 0:05:43]} Bb7 {[%emt 0:03:56]} 10. Re1 {[%emt 0:01:53]} h6 {[%emt 0:01:32]} 11. d5 {[%emt 0:10:47]} Na5 {[%emt 0:10:10]} 12. Bc2 {[%emt 0:00:19]} Nc4 {[%emt 0:03:18]} 13. h3 {[%emt 0:05:30]} c6 {[%emt 0:12:02]} 14. b3 {[%emt 0:03:34]} Nd6 {[%emt 0:03:47]} 15. Ba3 {[%emt 0:03:44]} c5 {[%emt 0:00:03]} 16. Nbd2 {[%emt 0:03:29]} Re8 {[%emt 0:01:22]} 17. c4 {[%emt 0:01:54]} bxa4 {[%emt 0:01:39]} 18. bxa4 {[%emt 0:00:12]} Ba5 {[%emt 0:00:02]} 19. Bb2 {[%emt 0:01:34]} Bxd2 {[%emt 0:03:41]} 20. Nxd2 {[%emt 0:00:50]} Nc8 {[%emt 0:00:08]} 21. f4 {[%emt 0:03:13]} d6 {[%emt 0:00:27]} 22. f5 {[%emt 0:00:11]} a5 {[%emt 0:00:33]} 23. Qf3 {[%emt 0:01:37]} Ba6 {[%emt 0:00:46]} 24. Bc3 {[%emt 0:00:58]} Rb8 {[%emt 0:00:12]} 25. Nb3 {[%emt 0:02:58]} Rb4 {[%emt 0:00:54]} 26. Bxb4 cxb4 27. c5 {[%emt 0:02:39]} dxc5 {[%emt 0:00:43]} 28. Nxc5 {[%emt 0:00:05]} Nd6 {[%emt 0:00:27]} 29. Nxa6 {[%emt 0:01:17]} Qb6+ {[%emt 0:00:03]} 30. Qe3 {[%emt 0:00:06]} Qxa6 {[%emt 0:00:02]} 31. Bd3 {[%emt 0:00:06]} Qb7 {[%emt 0:00:10]} 32. Qc5 {[%emt 0:00:10]} Rd8 {[%emt 0:00:29]} 33. Qxa5 {[%emt 0:04:36]} Rc8 {[%emt 0:00:34]} 34. Qa6 {[%emt 0:00:17]} Qe7 {[%emt 0:00:46]} 35. Rac1 {[%emt 0:08:03]} Rxc1 {[%emt 0:00:05]} 36. Rxc1 {[%emt 0:00:03]} Kh7 {[%emt 0:00:00]} 37. Qb6 {[%emt 0:03:36]} Nfxe4 {[%emt 0:00:17]} 38. f6 {[%emt 0:02:02]} gxf6 {[%emt 0:00:04]} 39. Rc7 {[%emt 0:00:46]} Qf8 {[%emt 0:00:21]} 40. Bxe4+ {[%emt 0:00:18]} Nxe4 {[%emt 0:00:03]} 41. Qe6 {[%emt 0:00:09]} Ng5 {[%emt 0:01:16]} 42. Qf5+ {[%emt 0:02:29]} Kg7 {[%emt 0:00:04]} 43. h4 {[%emt 0:00:05]} Qb8 {[%emt 0:00:41]} 44. Rc6 {[%emt 0:00:45]} b3 {[%emt 0:01:27]} 45. hxg5 {[%emt 0:01:00]} b2 {[%emt 0:00:27]} 46. gxf6+ {[%emt 0:00:09]} 1-0

[Event "SixDays One Year IM-B 2023"]
[Site "Budapest"]
[Date "2023.09.23"]
[Round "9.5"]
[White "Kozusek, Daniel"]
[Black "Szabo, Abel"]
[Result "1-0"]
[ECO "D38"]
[WhiteElo "2365"]
[BlackElo "2234"]
[Annotator "RC"]
[PlyCount "73"]
[EventDate "2023.09.18"]
[EventType "tourn"]
[EventCountry "HUN"]
[SourceTitle "playchess.com"]
[Source "ChessBase"]
[SourceQuality "1"]
[TimeControl "5400+30"]

1. d4 {[%emt 0:00:02]} Nf6 {[%emt 0:00:10]} 2. Nf3 {[%emt 0:00:03]} e6 {[%emt 0:00:16]} 3. c4 {[%emt 0:00:03]} d5 {[%emt 0:00:07]} 4. Nc3 {[%emt 0:00:06]} Bb4 {[%emt 0:00:08]} 5. cxd5 {[%emt 0:00:17]} exd5 {[%emt 0:00:12]} 6. Bg5 {[%emt 0:00:05]} h6 {[%emt 0:00:28]} 7. Bh4 {[%emt 0:00:51]} g5 {[%emt 0:00:59]} 8. Bg3 {[%emt 0:00:04]} Ne4 {[%emt 0:00:12]} 9. Nd2 {[%emt 0:00:04]} Nxg3 {[%emt 0:00:10]} 10. hxg3 {[%emt 0:00:04]} c6 {[%emt 0:00:16]} 11. Qc2 {[%emt 0:01:04]} Qf6 {[%emt 0:00:18]} 12. a3 {[%emt 0:08:32]} Bxc3 {[%emt 0:06:49]} 13. bxc3 {[%emt 0:04:09]} Bf5 {[%emt 0:02:55]} 14. Qb3 {[%emt 0:02:10]} b6 {[%emt 0:02:24]} 15. e3 {[%emt 0:00:39]} Nd7 {[%emt 0:02:10]} 16. Be2 {[%emt 0:00:57]} O-O {[%emt 0:01:03]} 17. O-O {[%emt 0:00:55]} Rae8 {[%emt 0:04:36]} 18. Rfe1 {[%emt 0:03:25]} Re7 {[%emt 0:05:35]} 19. g4 {[%emt 0:19:43]} Bg6 {[%emt 0:02:49]} 20. Bf3 {[%emt 0:04:16]} Rfe8 {[%emt 0:03:53]} 21. a4 {[%emt 0:02:04]} Qd6 {[%emt 0:12:20]} 22. Rec1 {[%emt 0:05:06]} Qf6 {[%emt 0:06:40]} 23. Qd1 {[%emt 0:04:00]} Kg7 {[%emt 0:06:54]} 24. Nf1 {[%emt 0:00:05]} Qd6 {[%emt 0:04:11]} 25. Ng3 {[%emt 0:00:44]} Nf6 {[%emt 0:01:28]} 26. c4 {[%emt 0:02:04]} Ne4 {[%emt 0:04:06]} 27. Bxe4 {[%emt 0:00:57]} Bxe4 {[%emt 0:00:51]} 28. c5 {[%emt 0:01:47]} Qd7 {[%emt 0:00:52]} 29. Nh5+ {[%emt 0:00:27]} Kg6 {[%emt 0:05:55]} 30. f3 {[%emt 0:00:47]} f5 {[%emt 0:01:11]} 31. fxe4 {[%emt 0:01:02]} fxg4 {[%emt 0:00:29]} 32. Ng3 {[%emt 0:00:04]} dxe4 {[%emt 0:00:19]} 33. cxb6 {[%emt 0:00:43]} h5 {[%emt 0:00:31]} 34. Qc2 {[%emt 0:00:41]} Re6 {[%emt 0:00:06]} 35. bxa7 {[%emt 0:00:23]} h4 {[%emt 0:00:35]} 36. Nxe4 {[%emt 0:00:11]} Rxe4 {[%emt 0:00:33]} 37. a8=Q {[%emt 0:00:06]} 1-0